[Event "RUS-chT Blitz Men 2018"]
[Site "Sochi"]
[Date "2018.10.10"]
[Round "12"]
[White "Mamedov, Elmin"]
[Black "Tekeyev, Zaur"]
[Result "0-1"]
[ECO "B23"]
[WhiteElo "2210"]
[BlackElo "2392"]
[Annotator "NA"]
[PlyCount "102"]
[EventDate "2018.10.10"]
[EventType "swiss"]
[EventCountry "RUS"]
[SourceTitle "playchess.com"]
[Source "ChessBase"]
[SourceQuality "1"]
[TimeControl "180+2"]

1. e4 {[%emt 0:00:02]} c5 {[%emt 0:00:00]} 2. Ne2 {[%emt 0:00:01]} Nc6 {[%emt 0:00:00]} 3. Nbc3 {[%emt 0:00:00]} d6 {[%emt 0:00:03]} 4. g3 {[%emt 0:00:01]} g6 {[%emt 0:00:22]} 5. Bg2 {[%emt 0:00:01]} Bg7 {[%emt 0:00:01]} 6. O-O {[%emt 0:00:02]} e6 {[%emt 0:00:20]} 7. d3 {[%emt 0:00:01]} Nge7 {[%emt 0:00:02]} 8. f4 {[%emt 0:00:01]} O-O {[%emt 0:00:01]} 9. h3 {[%emt 0:00:04]} Rb8 {[%emt 0:00:04]} 10. a4 {[%emt 0:00:02]} b6 {[%emt 0:00:10]} 11. g4 {[%emt 0:00:03]} f5 {[%emt 0:00:01]} 12. Ng3 {[%emt 0:00:01]} Bb7 {[%emt 0:00:08]} 13. gxf5 {[%emt 0:00:17]} exf5 {[%emt 0:00:03]} 14. Kh1 {[%emt 0:00:11]} Qd7 {[%emt 0:00:03]} 15. Nd5 {[%emt 0:00:11]} Nxd5 {[%emt 0:00:15]} 16. exd5 {[%emt 0:00:02]} Nb4 17. c3 Nxd5 {[%emt 0:00:18]} 18. Qb3 {[%emt 0:00:19]} Qf7 {[%emt 0:00:01]} 19. Bd2 {[%emt 0:00:05]} Kh8 {[%emt 0:00:26]} 20. a5 {[%emt 0:00:14]} Nxf4 {[%emt 0:00:16]} 21. Qxf7 {[%emt 0:00:18]} Bxg2+ {[%emt 0:00:01]} 22. Kh2 {[%emt 0:00:01]} Rxf7 {[%emt 0:00:01]} 23. Rxf4 {[%emt 0:00:05]} Bc6 {[%emt 0:00:05]} 24. axb6 {[%emt 0:00:04]} axb6 {[%emt 0:00:02]} 25. Rff1 {[%emt 0:00:03]} Kg8 {[%emt 0:00:14]} 26. Rfe1 {[%emt 0:00:05]} Kf8 {[%emt 0:00:01]} 27. Bf4 {[%emt 0:00:02]} Rd7 {[%emt 0:00:18]} 28. Ra7 {[%emt 0:00:06]} Rxa7 {[%emt 0:00:12]} 29. Bxd6+ {[%emt 0:00:02]} Kf7 {[%emt 0:00:01]} 30. Bxb8 {[%emt 0:00:02]} Rd7 {[%emt 0:00:08]} 31. Rd1 {[%emt 0:00:21]} Bb5 {[%emt 0:00:05]} 32. Kg2 {[%emt 0:00:50]} Rxd3 {[%emt 0:00:03]} 33. Rxd3 {[%emt 0:00:01]} Bxd3 {[%emt 0:00:01]} 34. Ba7 {[%emt 0:00:01]} c4 {[%emt 0:00:08]} 35. Bxb6 {[%emt 0:00:01]} Bh6 {[%emt 0:00:03]} 36. Bc5 {[%emt 0:00:05]} Bc1 {[%emt 0:00:02]} 37. Ba3 {[%emt 0:00:01]} Ke6 {[%emt 0:00:01]} 38. Kf3 {[%emt 0:00:02]} Ke5 {[%emt 0:00:06]} 39. h4 {[%emt 0:00:16]} h6 {[%emt 0:00:02]} 40. h5 {[%emt 0:00:01]} g5 {[%emt 0:00:03]} 41. Ne2 {[%emt 0:00:02]} g4+ {[%emt 0:00:01]} 42. Kf2 {[%emt 0:00:02]} Bxe2 {[%emt 0:00:03]} 43. Kxe2 {[%emt 0:00:00]} Ke4 {[%emt 0:00:02]} 44. Bf8 {[%emt 0:00:03]} f4 {[%emt 0:00:02]} 45. Kf2 {[%emt 0:00:03]} f3 {[%emt 0:00:01]} 46. Bg7 {[%emt 0:00:06]} Bf4 {[%emt 0:00:04]} 47. Bd4 {[%emt 0:00:04]} g3+ {[%emt 0:00:01]} 48. Kf1 {[%emt 0:00:01]} Bc1 {[%emt 0:00:05]} 49. Bg7 {[%emt 0:00:02]} Kf5 {[%emt 0:00:02]} 50. Kg1 {[%emt 0:00:04]} Be3+ {[%emt 0:00:02]} 51. Kf1 {[%emt 0:00:01]} g2+ {[%emt 0:00:01]} 0-1